fUSD/lending_fUSD_20240419
["ID","MTS","AMOUNT","RATE_DAILY","PERIOD"]
[322953511,1713539468846,-1154.64,0.00014794,2]
[322953512,1713539468855,-1100.69,0.00014794,2]
[322953513,1713539468865,-669.64,0.00014794,2]
[322953514,1713539468875,-500.0,0.00014794,2]
[322953515,1713539468884,-924.6,0.00014794,2]
[322953516,1713539468893,-1288.1,0.00014794,2]
[322953517,1713539468903,-1405.84,0.00014794,2]
[322953518,1713539468913,-1133.01,0.00014794,2]
[322953519,1713539468922,-730.08,0.00014794,2]
[322953520,1713539468931,-500.0,0.00014794,2]
[322953521,1713539468941,-1976.48,0.00014794,2]
[322953522,1713539468950,-1492.45,0.00014794,2]
[322953523,1713539468959,-500.0,0.00014794,2]
[322953524,1713539468969,-500.0,0.00014794,2]
[322953525,1713539468978,-500.0,0.00014794,2]
[322953526,1713539468987,-208.48,0.00014794,2]
[322953527,1713539468997,-500.0,0.00014794,2]
[322953528,1713539469010,-1424.79,0.00014794,2]
[322953529,1713539469019,-2203.26,0.00014794,2]
[322953530,1713539469029,-500.0,0.00014794,2]
[322953531,1713539469038,-796.07,0.00014794,2]
[322953532,1713539469047,-707.17,0.00014794,2]
[322953533,1713539469057,-500.0,0.00014794,2]
[322953534,1713539469066,-500.0,0.00014794,2]
[322953535,1713539469076,-500.0,0.00014794,2]
[322953536,1713539469086,-700.01,0.00014794,2]
[322953537,1713539469095,-519.18,0.00014794,2]
[322953538,1713539469105,-500.0,0.00014794,2]
[322953539,1713539469114,-1134.86,0.00014794,2]
[322953540,1713539469123,-500.0,0.00014794,2]
[322953541,1713539469133,-3084.75,0.00014794,2]
[322953542,1713539469142,-500.0,0.00014794,2]
[322953543,1713539469151,-500.0,0.00014794,2]
[322953544,1713539469161,-500.0,0.00014794,2]
[322953545,1713539469170,-519.1046514,0.00014794,2]
[322953546,1713539469180,-1259.4,0.00014794,2]
[322953547,1713539469189,-623.75,0.00014794,2]
[322953548,1713539469198,-1069.93,0.00014794,2]
[322953549,1713539469207,-500.0,0.00014794,2]
[322953550,1713539469217,-618.61,0.00014794,2]
[322953551,1713539469226,-521.89,0.00014794,2]
[322953552,1713539469236,-538.44,0.00014794,2]
[322953553,1713539469245,-1966.54,0.00014794,2]
[322953554,1713539469257,-500.0,0.00014794,2]
[322953555,1713539469267,-1609.8,0.00014794,2]
[322953556,1713539469276,-7928.74,0.00014794,2]
[322953557,1713539469287,-1092.93,0.00014794,2]
[322953558,1713539469296,-868.83,0.00014794,2]
[322953559,1713539469305,-500.0,0.00014794,2]
[322953560,1713539469315,-1170.04,0.00014794,2]
[322953561,1713539469325,-571.39,0.00014794,2]
[322953562,1713539469334,-500.0,0.00014794,2]
[322953563,1713539469343,-9975.74,0.00014794,2]
[322953564,1713539469353,-500.0,0.00014794,2]
[322953565,1713539469362,-3408.42,0.00014794,2]
[322953566,1713539469371,-1020.07,0.00014794,2]
[322953567,1713539469381,-500.0,0.00014794,2]
[322953568,1713539469390,-514.62,0.00014794,2]
[322953569,1713539469400,-5435.63,0.00014794,2]
[322953570,1713539469409,-500.0,0.00014794,2]
[322953571,1713539469418,-500.0,0.00014794,2]
[322953572,1713539469428,-1686.88,0.00014794,2]
[322953573,1713539469440,-1369.06,0.00014794,2]
[322953574,1713539469449,-1051.05,0.00014794,2]
[322953575,1713539469460,-301.91193047,0.00014794,2]
[322953576,1713539469469,-500.0,0.00014794,2]
[322953577,1713539469478,-500.0,0.00014794,2]
[322953578,1713539469488,-1008.66,0.00014794,2]
[322953579,1713539469497,-37870.5,0.00014794,2]
[322953580,1713539469508,-2826.2,0.00014794,2]
[322953581,1713539469517,-500.0,0.00014794,2]
[322953582,1713539469526,-500.0,0.00014794,2]
[322953583,1713539469535,-3214.3,0.00014794,2]
[322953584,1713539469545,-590.15300918,0.00014794,2]
[322953585,1713539469554,-500.0,0.00014794,2]
[322953586,1713539469564,-68489.55,0.00014794,2]
[322953587,1713539469574,-2172.34,0.00014794,2]
[322953588,1713539469583,-500.0,0.00014794,2]
[322953589,1713539469593,-1536.9,0.00014794,2]
[322953590,1713539469603,-1016.99,0.00014794,2]
[322953591,1713539469612,-500.0,0.00014794,2]
[322953592,1713539469622,-917.0,0.00014794,2]
[322953593,1713539469631,-2334.44,0.00014794,2]
[322953594,1713539469641,-6013.93,0.00014794,2]
[322953595,1713539469650,-733.92,0.00014794,2]
[322953596,1713539469659,-500.0,0.00014794,2]
[322953597,1713539469669,-500.0,0.00014794,2]
[322953598,1713539469678,-4264.19,0.00014794,2]
[322953599,1713539469687,-500.0,0.00014794,2]
[322953600,1713539469697,-500.0,0.00014794,2]
[322953601,1713539469706,-500.0,0.00014794,2]
[322953602,1713539469715,-1149.86,0.00014794,2]
[322953603,1713539469724,-1707.82,0.00014794,2]
[322953604,1713539469734,-4364.6,0.00014794,2]
[322953605,1713539469743,-500.0,0.00014794,2]
[322953606,1713539469752,-500.0,0.00014794,2]
[322953607,1713539469764,-500.0,0.00014794,2]
[322953608,1713539469773,-500.0,0.00014794,2]
[322953609,1713539469783,-500.0,0.00014794,2]
[322953610,1713539469793,-500.0,0.00014794,2]
[322953611,1713539469802,-5253.04,0.00014794,2]
[322953612,1713539469811,-1745.37,0.00014794,2]
[322953613,1713539469820,-8664.65,0.00014794,2]
[322953614,1713539469830,-1043.29,0.00014794,2]
[322953615,1713539469843,-500.0,0.00014794,2]
[322953616,1713539469853,-500.0,0.00014794,2]
[322953617,1713539469862,-1124.69,0.00014794,2]
[322953618,1713539469871,-5739.83,0.00014794,2]
[322953619,1713539469882,-500.0,0.00014794,2]
[322953620,1713539469890,-5182.2,0.00014794,2]
[322953621,1713539469899,-3129.88,0.00014794,2]
[322953622,1713539469909,-1339.57,0.00014794,2]
[322953623,1713539469919,-500.0,0.00014794,2]
[322953624,1713539469928,-2779.11,0.00014794,2]
[322953625,1713539469938,-4101.57,0.00014794,2]
[322953626,1713539469949,-712.3,0.00014794,2]
[322953627,1713539469960,-670.63,0.00014794,2]
[322953628,1713539469970,-500.0,0.00014794,2]
[322953629,1713539469979,-12222.67,0.00014794,2]
[322953630,1713539469989,-1744.08,0.00014794,2]
[322953631,1713539469998,-500.0,0.00014794,2]
[322953632,1713539470008,-753.3,0.00014794,2]
[322953633,1713539470017,-22102.7,0.00014794,2]
[322953634,1713539470026,-1539.39,0.00014794,2]
[322953635,1713539470035,-500.0,0.00014794,2]
[322953636,1713539470045,-725.11,0.00014794,2]
[322953637,1713539470055,-6928.39,0.00014794,2]
[322953638,1713539470064,-7024.24,0.00014794,2]
[322953639,1713539470074,-500.0,0.00014794,2]
[322953640,1713539470083,-963.83,0.00014794,2]
[322953641,1713539470092,-5132.16,0.00014794,2]
[322953642,1713539470102,-5019.52,0.00014794,2]
[322953643,1713539470112,-974.15,0.00014794,2]
[322953644,1713539470122,-803.35,0.00014794,2]
[322953645,1713539470131,-868.08,0.00014794,2]
[322953646,1713539470141,-642.23,0.00014794,2]
[322953647,1713539470151,-8319.09,0.00014794,2]
[322953648,1713539470160,-500.0,0.00014794,2]
[322953649,1713539470170,-1351.82,0.00014794,2]
[322953650,1713539470181,-500.0,0.00014794,2]
[322953651,1713539470189,-1743.3,0.00014794,2]
[322953652,1713539470199,-3333.48,0.00014794,2]
[322953653,1713539470208,-500.0,0.00014794,2]
[322953654,1713539470218,-7840.04,0.00014794,2]
[322953655,1713539470227,-667.69,0.00014794,2]
[322953656,1713539470236,-4630.5,0.00014794,2]
[322953657,1713539470246,-816.58,0.00014794,2]
[322953658,1713539470255,-500.0,0.00014794,2]
[322953659,1713539470265,-12077.47,0.00014794,2]
[322953660,1713539470274,-713.14,0.00014794,2]
[322953661,1713539470283,-3519.68,0.00014794,2]
[322953662,1713539470293,-500.0,0.00014794,2]
[322953663,1713539470301,-937.35,0.00014794,2]
[322953664,1713539470310,-5497.57,0.00014794,2]
[322953665,1713539470319,-500.0,0.00014794,2]
[322953666,1713539470328,-500.0,0.00014794,2]
[322953667,1713539470337,-2761.54,0.00014794,2]
[322953668,1713539470347,-500.0,0.00014794,2]
[322953669,1713539470356,-5590.25,0.00014794,2]
[322953670,1713539470365,-500.0,0.00014794,2]
[322953671,1713539470374,-500.0,0.00014794,2]
[322953672,1713539470383,-500.0,0.00014794,2]
[322953673,1713539470393,-1662.05,0.00014794,2]
[322953674,1713539470402,-6845.33,0.00014794,2]
[322953675,1713539470411,-2180.04,0.00014794,2]
[322953676,1713539470421,-2809.62,0.00014794,2]
[322953677,1713539470430,-9104.95,0.00014794,2]
[322953678,1713539470439,-2885.34,0.00014794,2]
[322953679,1713539470448,-1148.73,0.00014794,2]
[322953680,1713539470458,-5415.87,0.00014794,2]
[322953681,1713539470467,-658.68,0.00014794,2]
[322953682,1713539470477,-61830.81,0.00014794,2]
[322953683,1713539470486,-500.0,0.00014794,2]
[322953684,1713539470496,-602.76183608,0.00014794,2]
[322953685,1713539470505,-7183.93,0.00014794,2]
[322953686,1713539470519,-5504.36,0.00014794,2]
[322953687,1713539470528,-863.36,0.00014794,2]
[322953688,1713539470538,-3680.61,0.00014794,2]
[322953689,1713539470547,-500.0,0.00014794,2]
[322953690,1713539470557,-515.79,0.00014794,2]
[322953691,1713539470567,-6361.5,0.00014794,2]
[322953692,1713539470577,-1245.2947458,0.00014794,2]
[322953693,1713539471373,-2605.4952542,0.00014794,2]
[322953694,1713539471384,-500.0,0.00014794,2]
[322953695,1713539471394,-2867.99,0.00014794,2]
[322953696,1713539471403,-1025.6,0.00014794,2]
[322953697,1713539471412,-667.33,0.00014794,2]
[322953698,1713539471422,-1372.05,0.00014794,2]
[322953699,1713539471432,-819.76,0.00014794,2]
[322953700,1713539471442,-2145.77,0.00014794,2]
[322953701,1713539471451,-1309.02,0.00014794,2]
[322953702,1713539471461,-4199.02,0.00014794,2]
[322953703,1713539471472,-2170.36,0.00014794,2]
[322953704,1713539471481,-2275.5,0.00014794,2]
[322953705,1713539471491,-6343.29,0.00014794,2]
[322953706,1713539471500,-672.04,0.00014794,2]
[322953707,1713539471513,-3246.23,0.00014794,2]
[322953708,1713539471523,-691.17,0.00014794,2]
[322953709,1713539471534,-1964.06,0.00014794,2]
[322953710,1713539471543,-500.0,0.00014794,2]
[322953711,1713539471553,-796.77,0.00014794,2]
[322953712,1713539471563,-4995.8,0.00014794,2]
[322953713,1713539471573,-4516.87,0.00014794,2]
[322953714,1713539471582,-1803.39,0.00014794,2]
[322953715,1713539471591,-500.0,0.00014794,2]
[322953716,1713539471601,-3606.67,0.00014794,2]
[322953717,1713539471611,-500.0,0.00014794,2]
[322953718,1713539471620,-500.0,0.00014794,2]
[322953719,1713539471630,-511.21,0.00014794,2]
[322953720,1713539471640,-838.83,0.00014794,2]
[322953721,1713539471649,-3171.71,0.00014794,2]
[322953722,1713539471660,-500.0,0.00014794,2]
[322953723,1713539471670,-9222.35,0.00014794,2]
[322953724,1713539471680,-3500.55,0.00014794,2]
[322953725,1713539471690,-2598.46,0.00014794,2]
[322953726,1713539471699,-1479.86,0.00014794,2]
[322953727,1713539471709,-1407.94,0.00014794,2]
[322953728,1713539471861,-500.0,0.00014794,2]
[322953729,1713539471872,-6160.11,0.00014794,2]
[322953730,1713539471883,-2428.89,0.00014794,2]
[322953731,1713539471894,-637.24,0.00014794,2]
[322953732,1713539471904,-500.0,0.00014794,2]
[322953733,1713539471914,-3483.25889891,0.00014794,2]
[322953734,1713539471927,-2553.41110109,0.00014794,2]
[322953735,1713539471937,-6219.6,0.00014794,2]
[322953736,1713539471946,-500.0,0.00014794,2]
[322953737,1713539471956,-500.0,0.00014794,2]
[322953738,1713539471965,-500.0,0.00014794,2]
[322953739,1713539471974,-500.0,0.00014794,2]
[322953740,1713539471984,-500.0,0.00014794,2]
[322953741,1713539471993,-756.98,0.00014794,2]
[322953742,1713539472002,-1900.46,0.00014794,2]
[322953743,1713539472016,-4988.53,0.00014794,2]
[322953744,1713539472026,-692.6,0.00014794,2]
[322953745,1713539472035,-4617.52,0.00014794,2]
[322953746,1713539472044,-2469.31,0.00014794,2]
[322953747,1713539472055,-500.0,0.00014794,2]
[322953748,1713539472064,-1105.67,0.00014794,2]
[322953749,1713539472074,-640.07,0.00014794,2]
[322953750,1713539472083,-634.09,0.00014794,2]
[322953751,1713539472092,-2459.17,0.00014794,2]
[322953752,1713539472102,-4496.93,0.00014794,2]
[322953753,1713539472111,-500.0,0.00014794,2]
[322953754,1713539472122,-2958.97,0.00014794,2]
[322953755,1713539472131,-11710.31,0.00014794,2]
[322953756,1713539472141,-10190.09,0.00014794,2]
[322953757,1713539472150,-2099.85,0.00014794,2]
[322953758,1713539472160,-500.0,0.00014794,2]
[322953759,1713539472169,-591.93,0.00014794,2]
[322953760,1713539472178,-1208.96,0.00014794,2]
[322953761,1713539472188,-4135.08,0.00014794,2]
[322953762,1713539472197,-10956.09,0.00014794,2]
[322953763,1713539472208,-649.49,0.00014794,2]
[322953764,1713539472217,-2967.19,0.00014794,2]
[322953765,1713539472226,-2464.06,0.00014794,2]
[322953766,1713539472236,-10715.63,0.00014794,2]
[322953767,1713539472246,-4223.22,0.00014794,2]
[322953768,1713539472256,-2030.89,0.00014794,2]
[322953769,1713539472268,-500.0,0.00014794,2]
[322953770,1713539472278,-618.93875623,0.00014794,2]
[322953771,1713539472287,-704.97,0.00014794,2]
[322953772,1713539472296,-9396.29,0.00014794,2]
[322953773,1713539472306,-521.86,0.00014794,2]
[322953774,1713539472315,-1256.51,0.00014794,2]
[322953775,1713539472324,-5335.97223779,0.00014794,2]
[322953776,1713539472338,-3268.0669238,0.00014794,2]
[322953777,1713539472426,-329.64386627,0.00014794,2]
[322953778,1713539472439,-3220.47496843,0.00014794,2]
[322953779,1713539472518,-1339.75955487,0.00014794,2]
[322953780,1713539472529,-772.34679999,0.00014794,2]
[322953781,1713539472541,-1247.575,0.00014794,2]
[322953782,1713539472585,-264.4956,0.00014794,2]
[322953783,1713539472597,-1098.90001,0.00014794,2]
[322953784,1713539472609,-776.69076544,0.00014794,2]
[322953785,1713539473829,-610.0,0.00013872,2]
[322953786,1713539473844,-244.90794872,0.00013872,2]
[322953787,1713539473855,-500.0,0.00014788,2]
[322953788,1713539473865,-472.55205128,0.00014794,2]
[322953789,1713539473882,-85.58222213,0.00014794,2]
[322953790,1713539473891,-1464.61209859,0.00014794,2]
[322953791,1713539473912,-1836.89131388,0.00014794,2]
[322953792,1713539473925,-610.61,0.00014794,2]
[322953793,1713539473937,-316.00200425,0.00014794,2]
[322953794,1713539473967,-854.90794872,0.00014009,2]
[322953795,1713539473977,-27.09458328,0.00014794,2]
[322953796,1713539473986,-414.064428,0.00014794,2]
[322953797,1713539475773,-2234.90442122,0.00013698,2]
[322953798,1713539475785,-3592.11557878,0.00013698,2]
[322953799,1713539475795,-7535.21,0.00013698,2]
[322953800,1713539475804,-500.0,0.00013698,2]
[322953801,1713539475814,-682.72,0.00013698,2]
[322953802,1713539475824,-500.0,0.00013698,2]
[322953803,1713539475835,-5827.02,0.00013972,2]
[322953804,1713539475846,-500.0,0.00013972,2]
[322953805,1713539475856,-7535.21,0.00013972,2]
[322953806,1713539475865,-500.0,0.00013972,2]
[322953807,1713539475876,-682.72,0.00013972,2]
[322953808,1713539475886,-854.90794872,0.00014146,2]
[322953809,1713539475896,-5827.02,0.00014246,2]
[322953810,1713539475906,-500.0,0.00014246,2]
[322953811,1713539475916,-7535.21,0.00014246,2]
[322953812,1713539475927,-500.0,0.00014246,2]
[322953813,1713539475937,-5827.02,0.0001452,2]
[322953814,1713539475947,-500.0,0.0001452,2]
[322953815,1713539475957,-7535.21,0.0001452,2]
[322953816,1713539475968,-4918.705572,0.00014794,2]
[322953817,1713539475978,-1905.71,0.00014794,2]
[322953818,1713539475987,-500.0,0.00014794,2]
[322953819,1713539475997,-1407.82,0.00014794,2]
[322953820,1713539476007,-500.0,0.00014794,2]
[322953821,1713539476019,-3206.61,0.00014794,2]
[322953822,1713539476029,-500.0,0.00014794,2]
[322953823,1713539476040,-2440.3,0.00014794,2]
[322953824,1713539476050,-934.89,0.00014794,2]
[322953825,1713539476060,-6273.24,0.00014794,2]
[322953826,1713539476070,-990.51,0.00014794,2]
[322953827,1713539476080,-3428.52,0.00014794,2]
[322953828,1713539476090,-5267.06,0.00014794,2]
[322953829,1713539476101,-808.04,0.00014794,2]
[322953830,1713539476110,-3486.88,0.00014794,2]
[322953831,1713539476120,-500.0,0.00014794,2]
[322953832,1713539476131,-682.4,0.00014794,2]
[322953833,1713539476140,-2018.61,0.00014794,2]
[322953834,1713539476150,-9066.2,0.00014794,2]
[322953835,1713539476160,-514.45,0.00014794,2]
[322953836,1713539476170,-500.0,0.00014794,2]
[322953837,1713539476181,-5827.02,0.00014794,2]
[322953838,1713539476191,-500.0,0.00014794,2]
[322953839,1713539476201,-7535.21,0.00014794,2]
[322953840,1713539476211,-732.22575,0.0001487,2]
[322953841,1713539476221,-500.0,0.00014891,2]
[322953842,1713539476232,-500.0,0.00014891,2]
[322953843,1713539476242,-725.51,0.00014891,2]
[322953844,1713539476252,-1479.14,0.00014891,2]
[322953845,1713539476265,-1757.71,0.00014891,2]
[322953846,1713539476276,-918.59,0.00014891,2]
[322953847,1713539476286,-537.11,0.00014891,2]
[322953848,1713539476295,-796.71,0.00014891,2]
[322953849,1713539476305,-337.53481145,0.00014891,2]
[322953850,1713539476581,-682.72,0.00014246,2]
[322953851,1713539476591,-1568.49518855,0.00014891,2]
[322953852,1713539476601,-788.98481145,0.00014891,2]
[322953853,1713539476613,-102.28518855,0.00014891,2]
[322953854,1713539476623,-500.0,0.00014891,2]
[322953855,1713539476633,-500.0,0.00014891,2]
[322953856,1713539476642,-1424.17,0.00014891,2]
[322953857,1713539476652,-500.0,0.00014891,2]
[322953858,1713539476662,-500.0,0.00014891,2]
[322953859,1713539476672,-500.0,0.00014891,2]
[322953860,1713539476682,-670.02,0.00014891,2]
[322953861,1713539476692,-573.92,0.00014891,2]
[322953862,1713539476702,-1119.01,0.00014891,2]
[322953863,1713539476711,-1252.46,0.00014891,2]
[322953864,1713539476722,-500.0,0.00014891,2]
[322953865,1713539476732,-757.05,0.00014891,2]
[322953866,1713539476742,-500.0,0.00014891,2]
[322953867,1713539476751,-731.24,0.00014891,2]
[322953868,1713539476762,-626.15,0.00014891,2]
[322953869,1713539476772,-500.0,0.00014891,2]
[322953870,1713539476782,-904.07,0.00014891,2]
[322953871,1713539476792,-1643.75,0.00014891,2]
[322953872,1713539476802,-793.05,0.00014891,2]
[322953873,1713539476812,-500.0,0.00014891,2]
[322953874,1713539476822,-626.84,0.00014891,2]
[322953875,1713539476838,-500.0,0.00014891,2]
[322953876,1713539476848,-921.22,0.00014891,2]
[322953877,1713539476858,-1313.72,0.00014891,2]
[322953878,1713539476867,-922.08,0.00014891,2]
[322953879,1713539476878,-500.0,0.00014891,2]
[322953880,1713539476888,-669.57,0.00014891,2]
[322953881,1713539476897,-976.95,0.00014891,2]
[322953882,1713539476907,-2417.68,0.00014891,2]
[322953883,1713539476917,-500.0,0.00014891,2]
[322953884,1713539476927,-624.42649317,0.00014891,2]
[322953885,1713539477077,-323.020692,0.0001452,2]
[322953893,1713539779901,1999.99,0.00023,30]
[322953898,1713539880086,262.62,0.00011146,2]
[322953899,1713539932073,160.79,0.0001611,15]
[322953906,1713540070955,500.0,0.00021918,30]
[322953907,1713540071654,500.0,0.00021918,30]
[322953908,1713540071930,500.0,0.00021918,30]
[322953909,1713540072358,500.0,0.00021918,30]
[322953910,1713540072781,649.84188247,0.00021918,30]
[322953911,1713540074592,15294.45121805,0.0001,2]
[322953915,1713540356549,249.48,0.00010364,2]
[322953919,1713540479307,160.79,0.0001611,15]
[322953959,1713540631714,-317.06523479,0.0001227,2]
[322953960,1713540631826,-867.24520806,0.0001227,2]
[322953961,1713540631978,-22157.05404206,0.0001227,2]
[322953962,1713540631988,-2178.66211455,0.0001227,2]
[322953963,1713540631997,-150.0,0.00012271,2]
[322953964,1713540632007,-5186.28384439,0.00012271,2]
[322953965,1713540632045,-316.0,0.00012271,2]
[322953966,1713540632058,-1836.13547978,0.00012271,2]
[322953967,1713540632067,-15745.1297478,0.00012272,2]
[322953968,1713540632079,-10679.590396,0.00012272,2]
[322954031,1713540638090,-437.55,0.00012272,2]
[322954034,1713540638103,-1513.27599174,0.00012272,2]
[322954036,1713540638113,-207.69492018,0.00012272,2]
[322954038,1713540638124,-4581.21114034,0.00012272,2]
[322954040,1713540638134,-545.46161987,0.00012274,2]
[322954043,1713540638145,-204.38,0.00012281,2]
[322954045,1713540638159,-9099.8,0.00012281,2]
[322954047,1713540638169,-310.44,0.00012281,2]
[322954049,1713540638179,-249.48,0.00012628,2]
[322954052,1713540638189,-464.99858771,0.00012841,2]
[322954054,1713540638200,-2771.89,0.00012846,2]
[322954056,1713540638211,-156.46,0.00012875,2]
[322954058,1713540638222,-150.99,0.00012875,2]
[322954060,1713540638235,-499.99,0.00012875,2]
[322954062,1713540638245,-1053.84,0.0001291,2]
[322954065,1713540638255,-6035.5,0.0001291,2]
[322954067,1713540638266,-156.46,0.0001291,2]
[322954069,1713540638277,-156.46,0.00012945,2]
[322954071,1713540638288,-158.69930918,0.00012964,2]
[322954073,1713540638299,-250.0,0.00012964,2]
[322954076,1713540638310,-156.46,0.00012981,2]
[322954078,1713540638323,-615.43,0.00012985,2]
[322954080,1713540638333,-156.46,0.00013016,2]
[322954082,1713540638343,-6832.31,0.00013035,2]
[322954084,1713540638354,-156.46,0.00013051,2]
[322954086,1713540638364,-689.56,0.00013064,2]
[322954088,1713540638375,-172.5,0.00013068,2]
[322954090,1713540638385,-156.46,0.00013086,2]
[322954092,1713540638395,-156.46,0.00013122,2]
[322954094,1713540638406,-156.46,0.00013157,2]
[322954097,1713540638418,-156.46,0.00013192,2]
[322954099,1713540638428,-156.46,0.00013228,2]
[322954101,1713540638438,-156.46,0.00013263,2]
[322954103,1713540638448,-156.46,0.00013298,2]
[322954105,1713540638458,-156.46,0.00013334,2]
[322954107,1713540638469,-156.46,0.00013369,2]
[322954110,1713540638479,-156.46,0.00013404,2]
[322954112,1713540638489,-495.65,0.0001341,2]
[322954114,1713540638499,-156.46,0.0001344,2]
[322954116,1713540638509,-156.46,0.00013475,2]
[322954118,1713540638520,-210.0,0.00013499,2]
[322954120,1713540638530,-156.46,0.0001351,2]
[322954122,1713540638541,-781.77758254,0.00013532,2]
[322954124,1713540638551,-156.46,0.00013546,2]
[322954127,1713540638561,-2154.2782,0.00013596,2]
[322954129,1713540638572,-285.7865,0.00013596,2]
[322954131,1713540638582,-794.453,0.00013596,2]
[322954133,1713540638593,-629.90719991,0.00013598,2]
[322954135,1713540638603,-199.24087466,0.00013598,2]
[322954137,1713540638613,-196.98302221,0.00013598,2]
[322954140,1713540638624,-1000.0,0.00013598,2]
[322954142,1713540638634,-17248.68029696,0.00013696,2]
[322954147,1713540638673,-3228.89249319,0.00013696,2]
[322954149,1713540638687,-3385.96953395,0.00013696,2]
[322954154,1713540638721,-5731.89280292,0.00013696,2]
[322954159,1713540638758,-738.294,0.00013696,2]
[322954161,1713540638772,-12507.67188522,0.00013696,2]
[322954252,1713540641192,-568.35547208,0.00013696,2]
[322954253,1713540641260,-1784.03961334,0.00013696,2]
[322954254,1713540641271,-849.99221988,0.00013696,2]
[322954255,1713540641283,-2980.27730005,0.00013696,2]
[322954256,1713540641295,-484.58165729,0.00013696,2]
[322954257,1713540641314,-2846.65934622,0.00013696,2]
[322954258,1713540641326,-394.18780526,0.00013696,2]
[322954259,1713540641382,-1959.08196983,0.00013696,2]
[322954260,1713540641393,-2400.19891817,0.00013696,2]
[322954261,1713540641487,-786.37319999,0.00013696,2]
[322954262,1713540641499,-10336.32,0.00013696,2]
[322954263,1713540641579,-9965.97812627,0.00013696,2]
[322954300,1713540642998,-478.46625305,0.00013696,2]
[322954301,1713540643080,-553.93911074,0.00013696,2]
[322954302,1713540643092,-417.51754277,0.00013696,2]
[322954303,1713540643131,-1078.79243425,0.00013696,2]
[322954304,1713540643144,-1599.74003416,0.00013696,2]
[322954305,1713540643169,-329.77279572,0.00013696,2]
[322954306,1713540643196,-650.65,0.00013696,2]
[322954313,1713540645945,-669.43569643,0.00013696,2]
[322954314,1713540645964,-4098.07966083,0.00013696,2]
[322954315,1713540646068,-769.55109282,0.00013696,2]
[322954316,1713540646077,-999.99,0.00013696,2]
[322954317,1713540646087,-299.99,0.00013696,2]
[322954318,1713540646096,-273.83649566,0.00013696,2]
[322954319,1713540646108,-605.19716965,0.00013696,2]
[322954320,1713540646118,-170.50308185,0.00013696,2]
[322954321,1713540646128,-1240.38328004,0.00013697,2]
[322954322,1713540646137,-381.43207162,0.00013697,2]
[322954323,1713540646148,-22959.93241329,0.00013697,2]
[322954324,1713540646160,-500.0,0.00013698,2]
[322954325,1713540646169,-500.0,0.00013698,2]
[322954326,1713540646179,-500.0,0.00013698,2]
[322954327,1713540646188,-500.0,0.00013698,2]
[322954328,1713540646199,-500.0,0.00013698,2]
[322954329,1713540646208,-500.0,0.00013698,2]
[322954330,1713540646218,-500.0,0.00013698,2]
[322954331,1713540646227,-287.36925476,0.00013698,2]
[322954332,1713540646239,-500.0,0.00013698,2]
[322954333,1713540646248,-500.0,0.00013698,2]
[322954334,1713540646258,-319.34079389,0.00013698,2]
[322954335,1713540646268,-500.0,0.00013698,2]
[322954336,1713540646279,-500.0,0.00013698,2]
[322954337,1713540646288,-500.0,0.00013698,2]
[322954338,1713540646296,-500.0,0.00013698,2]
[322954339,1713540646306,-500.0,0.00013698,2]
[322954340,1713540646319,-500.0,0.00013698,2]